fUST/lending_fUST_20240728
["ID","MTS","AMOUNT","RATE_DAILY","PERIOD"]
[333451459,1722137442783,-500.0,0.00013698,2]
[333451460,1722137442792,-500.0,0.00013698,2]
[333451461,1722137442801,-504.88912628,0.00013698,2]
[333451462,1722137442811,-500.0,0.00013698,2]
[333451463,1722137442820,-500.0,0.00013698,2]
[333451464,1722137442829,-500.0,0.00013698,2]
[333451465,1722137442838,-500.0,0.00013698,2]
[333451466,1722137442848,-221.118114,0.00013698,2]
[333451467,1722137442857,-500.0,0.00013698,2]
[333451468,1722137442866,-503.30146562,0.00013698,2]
[333451469,1722137442875,-500.0,0.00013698,2]
[333451470,1722137442884,-615.59375833,0.00013698,2]
[333451471,1722137442894,-500.0,0.00013698,2]
[333451472,1722137442903,-151.0,0.00013698,2]
[333451473,1722137442912,-151.0,0.00013698,2]
[333451474,1722137442921,-151.707269,0.00013698,2]
[333451475,1722137442930,-500.0,0.00013698,2]
[333451476,1722137442939,-511.27222313,0.00013698,2]
[333451477,1722137442951,-500.0,0.00013698,2]
[333451478,1722137442960,-500.0,0.00013698,2]
[333451479,1722137442970,-500.79895406,0.00013698,2]
[333451480,1722137442979,-500.0,0.00013698,2]
[333451481,1722137442988,-500.0,0.00013698,2]
[333451482,1722137442998,-500.0,0.00013698,2]
[333451483,1722137443007,-500.0,0.00013698,2]
[333451484,1722137443016,-500.0,0.00013698,2]
[333451485,1722137443028,-500.0,0.00013698,2]
[333451486,1722137443037,-500.0,0.00013698,2]
[333451487,1722137443047,-510.35443744,0.00013698,2]
[333451488,1722137443056,-502.3432045,0.00013698,2]
[333451489,1722137443065,-641.92796995,0.00013698,2]
[333451490,1722137443074,-201.12181834,0.00013698,2]
[333451492,1722137443083,-500.0,0.00013698,2]
[333451494,1722137443092,-152.762344,0.00013698,2]
[333451496,1722137443102,-500.0,0.00013698,2]
[333451499,1722137443111,-500.0,0.00013698,2]
[333451501,1722137443120,-500.0,0.00013698,2]
[333451503,1722137443129,-500.0,0.00013698,2]
[333451505,1722137443139,-500.0,0.00013698,2]
[333451507,1722137443149,-500.0,0.00013698,2]
[333451509,1722137443159,-503.37099468,0.00013698,2]
[333451510,1722137443171,-500.0,0.00013698,2]
[333451512,1722137443180,-500.0,0.00013698,2]
[333451514,1722137443190,-151.0,0.00013698,2]
[333451516,1722137443199,-151.0,0.00013698,2]
[333451518,1722137443208,-151.0,0.00013698,2]
[333451520,1722137443217,-501.09450704,0.00013698,2]
[333451522,1722137443226,-265.943587,0.00013698,2]
[333451524,1722137443235,-500.0,0.00013698,2]
[333451526,1722137443245,-500.0,0.00013698,2]
[333451528,1722137443254,-521.94960153,0.00013698,2]
[333451530,1722137443263,-185.10903634,0.00013698,2]
[333451532,1722137443273,-500.0,0.00013698,2]
[333451534,1722137443285,-502.32427847,0.00013698,2]
[333451536,1722137443294,-558.53222212,0.00013698,2]
[333451538,1722137443304,-500.0,0.00013698,2]
[333451540,1722137443313,-351.802318,0.00013698,2]
[333451542,1722137443321,-500.0,0.00013698,2]
[333451545,1722137443330,-505.97170029,0.00013698,2]
[333451547,1722137443339,-500.0,0.00013698,2]
[333451549,1722137443349,-351.802318,0.00013698,2]
[333451551,1722137443359,-351.802318,0.00013698,2]
[333451553,1722137443368,-500.0,0.00013698,2]
[333451555,1722137443378,-523.78158009,0.00013698,2]
[333451557,1722137443387,-500.0,0.00013698,2]
[333451559,1722137443397,-351.802318,0.00013698,2]
[333451561,1722137443406,-351.802318,0.00013698,2]
[333451563,1722137443415,-500.0,0.00013698,2]
[333451565,1722137443424,-351.802318,0.00013698,2]
[333451567,1722137443433,-500.0,0.00013698,2]
[333451570,1722137443442,-151.58568197,0.00013698,2]
[333451817,1722137445839,-348.41431803,0.00013698,2]
[333451819,1722137445849,-645.55270096,0.00013698,2]
[333451820,1722137445859,-500.0,0.00013698,2]
[333451821,1722137445869,-507.27027371,0.00013698,2]
[333451822,1722137445879,-500.0,0.00013698,2]
[333451823,1722137445888,-151.0,0.00013698,2]
[333451824,1722137445897,-151.0,0.00013698,2]
[333451825,1722137445906,-367.81014289,0.00013698,2]
[333451826,1722137445915,-151.0,0.00013698,2]
[333451827,1722137445925,-500.0,0.00013698,2]
[333451828,1722137445934,-429.54414401,0.00013698,2]
[333451829,1722137445944,-500.0,0.00013698,2]
[333451830,1722137445953,-500.0,0.00013698,2]
[333451831,1722137445962,-502.22379633,0.00013698,2]
[333451832,1722137445971,-500.0,0.00013698,2]
[333451833,1722137445981,-500.0,0.00013698,2]
[333451834,1722137445991,-161.55032,0.00013698,2]
[333451835,1722137446001,-500.0,0.00013698,2]
[333451836,1722137446011,-281.797539,0.00013698,2]
[333451837,1722137446020,-281.797539,0.00013698,2]
[333451838,1722137446030,-281.797539,0.00013698,2]
[333451839,1722137446039,-500.0,0.00013698,2]
[333451840,1722137446048,-500.0,0.00013698,2]
[333451841,1722137446058,-500.0,0.00013698,2]
[333451842,1722137446067,-500.0,0.00013698,2]
[333451843,1722137446077,-281.797539,0.00013698,2]
[333451844,1722137446086,-281.797539,0.00013698,2]
[333451845,1722137446096,-262.75656386,0.00013698,2]
[333451846,1722137446207,-500.0,0.00013698,2]
[333451847,1722137446218,-281.797539,0.00013698,2]
[333451848,1722137446228,-500.0,0.00013698,2]
[333451849,1722137446237,-500.0,0.00013698,2]
[333451850,1722137446247,-502.46805735,0.00013698,2]
[333451851,1722137446256,-500.0,0.00013698,2]
[333451852,1722137446265,-759.77,0.00013698,2]
[333451853,1722137446275,-500.0,0.00013698,2]
[333451854,1722137446285,-500.0,0.00013698,2]
[333451855,1722137446295,-500.0,0.00013698,2]
[333451856,1722137446305,-500.0,0.00013698,2]
[333451857,1722137446314,-500.0,0.00013698,2]
[333451858,1722137446324,-500.0,0.00013698,2]
[333451859,1722137446334,-500.0,0.00013698,2]
[333451860,1722137446343,-500.0,0.00013698,2]
[333451861,1722137446353,-500.0,0.00013698,2]
[333451862,1722137446362,-500.0,0.00013698,2]
[333451863,1722137446371,-500.0,0.00013698,2]
[333451864,1722137446381,-500.0,0.00013698,2]
[333451865,1722137446391,-500.0,0.00013698,2]
[333451866,1722137446400,-1117.58,0.00013698,2]
[333451867,1722137446410,-254.03992776,0.00013698,2]
[333451868,1722137446420,-500.0,0.00013698,2]
[333451869,1722137446429,-500.0,0.00013698,2]
[333451870,1722137446439,-576.76107088,0.00013698,2]
[333451871,1722137446448,-500.0,0.00013698,2]
[333451872,1722137446457,-500.0,0.00013698,2]
[333451873,1722137446467,-840.236966,0.00013698,2]
[333451874,1722137446476,-840.236966,0.00013698,2]
[333451875,1722137446485,-840.236966,0.00013698,2]
[333451877,1722137446494,-840.236966,0.00013698,2]
[333451879,1722137446504,-500.0,0.00013698,2]
[333451880,1722137446513,-501.99836143,0.00013698,2]
[333451881,1722137446523,-500.0,0.00013698,2]
[333451882,1722137446532,-500.0,0.00013698,2]
[333451883,1722137446541,-500.0,0.00013698,2]
[333451884,1722137446551,-840.236966,0.00013698,2]
[333451885,1722137446561,-840.236966,0.00013698,2]
[333451886,1722137446571,-840.236966,0.00013698,2]
[333451887,1722137446581,-500.0,0.00013698,2]
[333451888,1722137446591,-840.236966,0.00013698,2]
[333451889,1722137446601,-504.79220923,0.00013698,2]
[333451890,1722137446610,-500.0,0.00013698,2]
[333451891,1722137446620,-648.25364168,0.00013698,2]
[333451892,1722137446629,-501.31765663,0.00013698,2]
[333451893,1722137446639,-500.0,0.00013698,2]
[333451895,1722137446648,-509.08860012,0.00013698,2]
[333451896,1722137446657,-500.0,0.00013698,2]
[333451897,1722137446667,-151.0,0.00013698,2]
[333451898,1722137446676,-500.0,0.00013698,2]
[333451899,1722137446687,-151.0,0.00013698,2]
[333451900,1722137446700,-151.0,0.00013698,2]
[333451901,1722137446710,-151.0,0.00013698,2]
[333451902,1722137446719,-598.47691009,0.00013698,2]
[333451903,1722137446729,-500.0,0.00013698,2]
[333451904,1722137446739,-500.0,0.00013698,2]
[333451905,1722137446749,-500.0,0.00013698,2]
[333451906,1722137446759,-500.0,0.00013698,2]
[333451907,1722137446769,-500.0,0.00013698,2]
[333451908,1722137446778,-500.0,0.00013698,2]
[333451909,1722137446788,-482.80309057,0.00013698,2]
[333451910,1722137446798,-500.0,0.00013698,2]
[333451911,1722137446808,-500.0,0.00013698,2]
[333451912,1722137446818,-500.0,0.00013698,2]
[333451913,1722137446828,-500.0,0.00013698,2]
[333451914,1722137446838,-500.0,0.00013698,2]
[333451915,1722137446847,-502.11652453,0.00013698,2]
[333451916,1722137446857,-1400.935035,0.00013698,2]
[333451917,1722137446866,-500.0,0.00013698,2]
[333451918,1722137446876,-1400.935035,0.00013698,2]
[333451919,1722137446885,-1400.935035,0.00013698,2]
[333451920,1722137446895,-211.490601,0.00013698,2]
[333451921,1722137446905,-1400.935035,0.00013698,2]
[333451922,1722137446914,-500.0,0.00013698,2]
[333451923,1722137446923,-500.0,0.00013698,2]
[333451924,1722137446933,-1400.935035,0.00013698,2]
[333451925,1722137446942,-1400.935035,0.00013698,2]
[333451926,1722137446952,-500.0,0.00013698,2]
[333451927,1722137446961,-500.0,0.00013698,2]
[333451928,1722137446971,-1400.935035,0.00013698,2]
[333451929,1722137446981,-500.0,0.00013698,2]
[333451930,1722137446990,-500.0,0.00013698,2]
[333451931,1722137447000,-1400.935035,0.00013698,2]
[333451932,1722137447010,-501.86956202,0.00013698,2]
[333451933,1722137447019,-500.0,0.00013698,2]
[333451934,1722137447029,-3595.12,0.00013698,2]
[333451935,1722137447038,-389.60615886,0.00013698,2]
[333451936,1722137447048,-504.82807091,0.00013698,2]
[333451937,1722137447057,-500.0,0.00013698,2]
[333451938,1722137447067,-500.0,0.00013698,2]
[333451939,1722137447076,-301.35966032,0.00013698,2]
[333451940,1722137447086,-500.0,0.00013698,2]
[333451941,1722137447095,-500.0,0.00013698,2]
[333451942,1722137447105,-500.0,0.00013698,2]
[333451943,1722137447114,-500.0,0.00013698,2]
[333451944,1722137447123,-502.88311085,0.00013698,2]
[333451945,1722137447132,-592.82290165,0.00013698,2]
[333451946,1722137447142,-500.0,0.00013698,2]
[333451947,1722137447151,-994.2,0.00013698,2]
[333451949,1722137447161,-1595.32,0.00013698,2]
[333451950,1722137447171,-500.0,0.00013698,2]
[333451952,1722137447180,-503.34806146,0.00013698,2]
[333451953,1722137447190,-500.0,0.00013698,2]
[333451954,1722137447199,-500.0,0.00013698,2]
[333451955,1722137447209,-500.0,0.00013698,2]
[333451956,1722137447218,-151.0,0.00013698,2]
[333451957,1722137447227,-151.0,0.00013698,2]
[333451958,1722137447236,-550.04,0.00013698,2]
[333451959,1722137447246,-152.101764,0.00013698,2]
[333451960,1722137447255,-501.24379906,0.00013698,2]
[333451961,1722137447264,-500.0,0.00013698,2]
[333451962,1722137447274,-500.0,0.00013698,2]
[333451963,1722137447284,-500.0,0.00013698,2]
[333451964,1722137447293,-500.0,0.00013698,2]
[333451965,1722137447303,-500.0,0.00013698,2]
[333451966,1722137447312,-500.0,0.00013698,2]
[333451967,1722137447322,-500.0,0.00013698,2]
[333451968,1722137447332,-369.19822,0.00013698,2]
[333451969,1722137447341,-369.19822,0.00013698,2]
[333451970,1722137447351,-500.0,0.00013698,2]
[333451971,1722137447360,-369.19822,0.00013698,2]
[333451972,1722137447369,-369.19822,0.00013698,2]
[333451973,1722137447379,-500.0,0.00013698,2]
[333451974,1722137447388,-369.19822,0.00013698,2]
[333451975,1722137447397,-369.19822,0.00013698,2]
[333451976,1722137447406,-500.0,0.00013698,2]
[333451977,1722137447415,-369.19822,0.00013698,2]
[333451978,1722137447425,-369.19822,0.00013698,2]
[333451979,1722137447434,-217.67033221,0.00013698,2]
[333451980,1722137447443,-501.0819928,0.00013698,2]
[333451981,1722137447452,-197.50979917,0.00013698,2]
[333451982,1722137447462,-500.0,0.00013698,2]
[333451983,1722137447471,-690.79,0.00013698,2]
[333451984,1722137447480,-607.39199258,0.00013698,2]
[333451985,1722137447490,-500.0,0.00013698,2]
[333451986,1722137447499,-500.0,0.00013698,2]
[333451987,1722137447510,-151.0,0.00013698,2]
[333451988,1722137447519,-179.05800523,0.00013698,2]
[333451989,1722137447529,-151.0,0.00013698,2]
[333451990,1722137447539,-152.830853,0.00013698,2]
[333451991,1722137447548,-437.94005102,0.00013698,2]
[333451992,1722137447558,-507.13807192,0.00013698,2]
[333451993,1722137447568,-500.0,0.00013698,2]
[333451994,1722137447577,-500.0,0.00013698,2]
[333451995,1722137447587,-500.0,0.00013698,2]
[333451996,1722137447597,-500.0,0.00013698,2]
[333451997,1722137447606,-500.0,0.00013698,2]
[333451998,1722137447616,-502.15668245,0.00013698,2]
[333451999,1722137447626,-514.48357762,0.00013698,2]
[333452000,1722137447635,-504.98451102,0.00013698,2]
[333452001,1722137447645,-500.0,0.00013698,2]
[333452002,1722137447655,-225.975726,0.00013698,2]
[333452003,1722137447664,-225.975726,0.00013698,2]
[333452004,1722137447674,-225.975726,0.00013698,2]
[333452005,1722137447683,-500.0,0.00013698,2]
[333452006,1722137447697,-225.975726,0.00013698,2]
[333452007,1722137447707,-500.0,0.00013698,2]
[333452008,1722137447716,-225.975726,0.00013698,2]
[333452009,1722137447725,-225.975726,0.00013698,2]
[333452010,1722137447735,-455.368596,0.00013698,2]
[333452011,1722137447745,-225.975726,0.00013698,2]
[333452012,1722137447754,-455.368596,0.00013698,2]
[333452013,1722137447765,-225.975726,0.00013698,2]
[333452014,1722137447774,-500.0,0.00013698,2]
[333452015,1722137447784,-455.368596,0.00013698,2]
[333452016,1722137447793,-455.368596,0.00013698,2]
[333452017,1722137447803,-500.0,0.00013698,2]
[333452018,1722137447812,-3236.58,0.00013698,2]
[333452019,1722137447822,-455.368596,0.00013698,2]
[333452020,1722137447831,-455.368596,0.00013698,2]
[333452021,1722137447840,-455.368596,0.00013698,2]
[333452022,1722137447850,-455.368596,0.00013698,2]
[333452023,1722137447860,-500.0,0.00013698,2]
[333452024,1722137447870,-500.0,0.00013698,2]
[333452025,1722137447879,-500.0,0.00013698,2]
[333452026,1722137447888,-500.0,0.00013698,2]
[333452027,1722137447898,-500.0,0.00013698,2]
[333452028,1722137447907,-504.60021453,0.00013698,2]
[333452029,1722137447916,-198.51526294,0.00013698,2]
[333452030,1722137447926,-500.0,0.00013698,2]
[333452031,1722137447935,-500.0,0.00013698,2]
[333452032,1722137447944,-500.0,0.00013698,2]
[333452033,1722137447953,-500.0,0.00013698,2]
[333452034,1722137447963,-500.0,0.00013698,2]
[333452035,1722137447973,-975.54,0.00013698,2]
[333452036,1722137447982,-500.0,0.00013698,2]
[333452037,1722137447991,-500.0,0.00013698,2]
[333452038,1722137448002,-516.67,0.00013698,2]
[333452039,1722137448011,-500.0,0.00013698,2]
[333452040,1722137448020,-500.0,0.00013698,2]
[333452041,1722137448030,-1756.6,0.00013698,2]
[333452042,1722137448040,-151.0,0.00013698,2]
[333452043,1722137448049,-151.0,0.00013698,2]
[333452044,1722137448058,-888.528319,0.00013698,2]
[333452045,1722137448067,-151.0,0.00013698,2]
[333452046,1722137448077,-888.528319,0.00013698,2]
[333452047,1722137448087,-151.0,0.00013698,2]
[333452048,1722137448096,-888.528319,0.00013698,2]
[333452049,1722137448106,-888.528319,0.00013698,2]
[333452050,1722137448115,-500.0,0.00013698,2]
[333452051,1722137448124,-505.31951478,0.00013698,2]
[333452052,1722137448133,-500.0,0.00013698,2]
[333452053,1722137448143,-888.528319,0.00013698,2]
[333452054,1722137448152,-500.0,0.00013698,2]
[333452055,1722137448161,-888.528319,0.00013698,2]
[333452056,1722137448171,-888.528319,0.00013698,2]
[333452057,1722137448180,-888.528319,0.00013698,2]
[333452058,1722137448189,-500.0,0.00013698,2]
[333452059,1722137448198,-500.0,0.00013698,2]
[333452060,1722137448207,-500.0,0.00013698,2]
[333452061,1722137448217,-500.0,0.00013698,2]
[333452062,1722137448226,-500.0,0.00013698,2]
[333452063,1722137448236,-500.0,0.00013698,2]
[333452064,1722137448246,-500.0,0.00013698,2]
[333452065,1722137448255,-500.0,0.00013698,2]
[333452066,1722137448265,-500.0,0.00013698,2]
[333452067,1722137448275,-500.0,0.00013698,2]
[333452068,1722137448286,-500.0,0.00013698,2]
[333452069,1722137448295,-500.0,0.00013698,2]
[333452070,1722137448304,-151.0,0.00013698,2]
[333452071,1722137448317,-161.107165,0.00013698,2]
[333452072,1722137448326,-500.0,0.00013698,2]
[333452073,1722137448335,-500.0,0.00013698,2]
[333452074,1722137448344,-500.0,0.00013698,2]
[333452075,1722137448353,-500.0,0.00013698,2]
[333452076,1722137448362,-151.0,0.00013698,2]
[333452077,1722137448371,-151.0,0.00013698,2]
[333452078,1722137448380,-151.0,0.00013698,2]
[333452079,1722137448390,-151.0,0.00013698,2]
[333452080,1722137448399,-500.0,0.00013698,2]
[333452081,1722137448410,-545.13,0.00013698,2]
[333452082,1722137448420,-500.0,0.00013698,2]
[333452083,1722137448431,-519.55300726,0.00013698,2]
[333452084,1722137448441,-500.0,0.00013698,2]
[333452085,1722137448451,-500.0,0.00013698,2]
[333452086,1722137448460,-503.53182512,0.00013698,2]
[333452087,1722137448470,-500.0,0.00013698,2]
[333452088,1722137448479,-506.28590501,0.00013698,2]
[333452089,1722137448490,-500.0,0.00013698,2]
[333452090,1722137448499,-500.0,0.00013698,2]
[333452091,1722137448509,-500.0,0.00013698,2]
[333452092,1722137448519,-500.0,0.00013698,2]
[333452093,1722137448528,-500.0,0.00013698,2]
[333452094,1722137448543,-641.95,0.00013698,2]
[333452095,1722137448553,-151.081586,0.00013698,2]
[333452096,1722137448563,-500.0,0.00013698,2]
[333452097,1722137448571,-500.0,0.00013698,2]
[333452098,1722137448580,-500.0,0.00013698,2]
[333452099,1722137448590,-500.0,0.00013698,2]
[333452100,1722137448599,-5745.16,0.00013698,2]
[333452101,1722137448609,-5745.16,0.00013698,2]
[333452102,1722137448619,-907.98,0.00013698,2]
[333452103,1722137448629,-5745.16,0.00013698,2]
[333452104,1722137448743,-576.980202,0.00013698,2]
[333452105,1722137448753,-5745.16,0.00013698,2]
[333452106,1722137448763,-576.980202,0.00013698,2]
[333452107,1722137448773,-5745.16,0.00013698,2]
[333452108,1722137448784,-5745.16,0.00013698,2]
[333452109,1722137448794,-576.980202,0.00013698,2]
[333452110,1722137448803,-500.0,0.00013698,2]
[333452111,1722137448812,-5745.16,0.00013698,2]
[333452112,1722137448822,-576.980202,0.00013698,2]
[333452113,1722137448832,-5745.16,0.00013698,2]
[333452114,1722137448842,-5745.16,0.00013698,2]
[333452115,1722137448851,-648.25580276,0.00013698,2]
[333452116,1722137448861,-5745.16,0.00013698,2]
[333452117,1722137448870,-151.0,0.00013698,2]
[333452118,1722137448880,-5745.16,0.00013698,2]
[333452119,1722137448890,-151.646794,0.00013698,2]
[333452120,1722137448899,-500.0,0.00013698,2]
[333452121,1722137448909,-5745.16,0.00013698,2]
[333452122,1722137448919,-5745.16,0.00013698,2]
[333452123,1722137448929,-583.0711377,0.00013698,2]
[333452124,1722137448941,-4198.29867052,0.00013698,2]
[333452125,1722137448960,-1546.86132948,0.00013698,2]
[333452126,1722137448969,-576.980202,0.00013698,2]
[333452127,1722137448979,-5745.16,0.00013698,2]
[333452128,1722137448988,-576.980202,0.00013698,2]
[333452129,1722137448997,-500.0,0.00013698,2]
[333452130,1722137449007,-299.15692634,0.00013698,2]
[333452131,1722137449017,-576.980202,0.00013698,2]
[333452132,1722137449027,-576.980202,0.00013698,2]
[333452133,1722137449038,-500.0,0.00013698,2]
[333452134,1722137449047,-503.72277874,0.00013698,2]
[333452135,1722137449057,-500.0,0.00013698,2]
[333452136,1722137449066,-1088.68,0.00013698,2]
[333452137,1722137449077,-500.0,0.00013698,2]
[333452138,1722137449087,-151.0,0.00013698,2]
[333452139,1722137449098,-151.634749,0.00013698,2]
[333452140,1722137449108,-270.12338284,0.00013698,2]
[333452141,1722137449118,-500.0,0.00013698,2]
[333452142,1722137449128,-152.665355,0.00013698,2]
[333452143,1722137449138,-500.0,0.00013698,2]
[333452144,1722137449149,-500.0,0.00013698,2]
[333452145,1722137449159,-447.72937252,0.00013698,2]
[333452146,1722137449170,-209.71684471,0.00013698,2]
[333452147,1722137449179,-500.0,0.00013698,2]
[333452148,1722137449189,-500.0,0.00013698,2]
[333452149,1722137449199,-214.05572458,0.00013698,2]
[333452150,1722137449208,-500.0,0.00013698,2]
[333452151,1722137449218,-138.80510679,0.00013698,2]
[333452152,1722137449603,-361.19489321,0.00013698,2]
[333452153,1722137449614,-500.0,0.00013698,2]
[333452154,1722137449625,-500.0,0.00013698,2]
[333452155,1722137449636,-516.3584829,0.00013698,2]
[333452156,1722137449676,-58.62482074,0.00013698,2]
[333452157,1722137449686,-500.0,0.00013698,2]
[333452158,1722137449699,-500.0,0.00013698,2]
[333452159,1722137449711,-347.96223241,0.00013698,2]
[333452160,1722137449721,-500.0,0.00013698,2]
[333452161,1722137449732,-505.99636651,0.00013698,2]
[333452162,1722137449741,-503.97124725,0.00013698,2]
[333452163,1722137449750,-151.0,0.00013699,2]
[333452164,1722137449760,-350.5208799,0.00013699,2]
[333452165,1722137449769,-1232.396599,0.00013699,2]
[333452166,1722137449778,-3000.0,0.00013699,2]
[333452167,1722137449790,-9336.84933,0.00013699,2]
[333452168,1722137449799,-151.0,0.00013699,2]
[333452169,1722137449808,-151.0,0.00013699,2]
[333452170,1722137449819,-155.718874,0.00013699,2]
[333452171,1722137449828,-151.0,0.00013699,2]
[333452172,1722137449839,-351.802318,0.00013699,2]
[333452173,1722137449849,-151.0,0.00013699,2]
[333452174,1722137449860,-281.797539,0.00013699,2]
[333452175,1722137449871,-281.797539,0.00013699,2]
[333452176,1722137449881,-150.112233,0.000137,2]
[333452177,1722137449891,-150.112233,0.000137,2]
[333452178,1722137449903,-153.0,0.000137,2]
[333452179,1722137449914,-153.0,0.000137,2]
[333452180,1722137449925,-367.5393049,0.00013734,2]
[333452181,1722137449938,-150.112233,0.000138,2]
[333452182,1722137449949,-187.4811308,0.000138,2]
[333452183,1722137449961,-274.6491561,0.00013832,2]
[333452184,1722137449972,-32445.280693,0.00013861,2]
[333452185,1722137449983,-200.079804,0.00013861,2]
[333452186,1722137449994,-888.528319,0.00013861,2]
[333452187,1722137450004,-888.528319,0.00013861,2]
[333452188,1722137450015,-151.0,0.00013861,2]
[333452189,1722137450026,-576.980202,0.00013861,2]
[333452190,1722137450038,-576.980202,0.00013861,2]
[333452191,1722137450048,-5745.16,0.0001387,2]
[333452192,1722137450058,-369.19822,0.00013871,2]
[333452193,1722137450068,-369.19822,0.00013871,2]
[333452194,1722137450078,-225.975726,0.00013871,2]
[333452195,1722137450089,-225.975726,0.00013871,2]
[333452196,1722137450101,-455.368596,0.00013871,2]
[333452197,1722137450112,-455.368596,0.00013871,2]
[333452198,1722137450123,-5308.80312147,0.00013887,2]
[333452199,1722137450134,-27800.46030285,0.000139,2]
[333452200,1722137450145,-153.0,0.000139,2]
[333452201,1722137450159,-151.0,0.00013915,2]
[333452202,1722137450171,-5745.16,0.0001395,2]
[333452203,1722137450181,-840.236966,0.00013951,2]
[333452204,1722137450191,-840.236966,0.00013951,2]
[333452205,1722137450202,-151.0,0.00013951,2]
[333452206,1722137450212,-1400.935035,0.00013951,2]
[333452207,1722137450221,-1400.935035,0.00013951,2]
[333452208,1722137450231,-500.0,0.00013961,2]
[333452209,1722137450241,-151.0,0.00013961,2]
[333452210,1722137450251,-151.0,0.00013961,2]
[333452211,1722137450261,-500.0,0.00013961,2]
[333452212,1722137450271,-500.0,0.00013961,2]
[333452213,1722137450282,-151.0,0.00013961,2]
[333452214,1722137450292,-351.802318,0.00013961,2]
[333452215,1722137450302,-151.0,0.00013961,2]
[333452216,1722137450312,-281.797539,0.00013961,2]
[333452217,1722137450322,-281.797539,0.00013961,2]
[333452218,1722137450332,-888.528319,0.00013961,2]
[333452219,1722137450341,-888.528319,0.00013961,2]
[333452220,1722137450352,-278.407313,0.00013961,2]
[333452221,1722137450363,-576.980202,0.00013961,2]
[333452222,1722137450372,-576.980202,0.00013961,2]
[333452223,1722137450382,-151.0,0.00013962,2]
[333452224,1722137450391,-151.0,0.00013962,2]
[333452225,1722137450401,-151.0,0.00013962,2]
[333452226,1722137450411,-151.0,0.00013962,2]
[333452227,1722137450421,-151.0,0.00013962,2]
[333452228,1722137450431,-151.0,0.00013962,2]
[333452229,1722137450442,-151.0,0.00013962,2]
[333452230,1722137450453,-272.87702,0.00013962,2]
[333452231,1722137450462,-369.19822,0.00013962,2]
[333452232,1722137450471,-369.19822,0.00013962,2]
[333452233,1722137450482,-225.975726,0.00013962,2]
[333452234,1722137450492,-225.975726,0.00013962,2]
[333452235,1722137450502,-455.368596,0.00013962,2]
[333452236,1722137450513,-455.368596,0.00013962,2]
[333452237,1722137450523,-500.0,0.0001397,2]
[333452238,1722137450533,-500.0,0.0001397,2]
[333452239,1722137450544,-5745.16,0.0001397,2]
[333452240,1722137450554,-500.0,0.00013971,2]
[333452241,1722137450564,-500.0,0.00013971,2]
[333452242,1722137450574,-151.342338,0.00013971,2]
[333452243,1722137450584,-500.0,0.00013971,2]
[333452244,1722137450594,-500.0,0.00013971,2]
[333452245,1722137450603,-500.0,0.00013971,2]
[333452246,1722137450613,-500.0,0.00013971,2]
[333452247,1722137450624,-5745.16,0.00013971,2]
[333452248,1722137450634,-5745.16,0.00013971,2]
[333452249,1722137450644,-5745.16,0.00013971,2]
[333452250,1722137450654,-5745.16,0.00013971,2]
[333452251,1722137450663,-5745.16,0.00013971,2]